[Event "November 21 Late 2023"]
[Site "https://www.chess.com"]
[Date "2023.11.21"]
[Round "4"]
[White "Arnold, Ken"]
[Black "Dias, Joao Batista"]
[Result "1-0"]
[Board "135"]
[TimeControl "180+1"]
[WhiteFideId "2056836"]
[BlackFideId "2108240"]
[WhiteElo "2427"]
[BlackElo "1907"]
[WhiteTeam "USA"]
[BlackTeam "BRA"]
[WhiteClock "0:00:30"]
[BlackClock "0:00:25"]

1. e4 {[%clk 0:03:00]}  e5 {[%clk 0:02:58]} 2. Nf3 {[%clk 0:03:00]}  Nc6 {[%clk 0:02:58]} 3. Bb5 {[%clk 0:03:00]}  d6 {[%clk 0:02:58]} 4. d4 {[%clk 0:02:59]}  exd4 {[%clk 0:02:58]} 5. Nxd4 {[%clk 0:02:59]}  Bd7 {[%clk 0:02:59]} 6. Nxc6 {[%clk 0:02:58]}  Bxc6 {[%clk 0:02:57]} 7. Bxc6+ {[%clk 0:02:58]}  bxc6 {[%clk 0:02:57]} 8. c4 {[%clk 0:02:57]}  Be7 {[%clk 0:02:57]} 9. Nc3 {[%clk 0:02:56]}  Bf6 {[%clk 0:02:57]} 10. Qf3 {[%clk 0:02:54]}  Ne7 {[%clk 0:02:56]} 11. O-O {[%clk 0:02:53]}  O-O {[%clk 0:02:56]} 12. b3 {[%clk 0:02:51]}  a5 {[%clk 0:02:55]} 13. Bb2 {[%clk 0:02:50]}  Ng6 {[%clk 0:02:51]} 14. Rad1 {[%clk 0:02:48]}  Qe8 {[%clk 0:02:48]} 15. Rfe1 {[%clk 0:02:46]}  Qe6 {[%clk 0:02:43]} 16. g3 {[%clk 0:02:24]}  Qh3 {[%clk 0:02:33]} 17. Qg2 {[%clk 0:02:21]}  Qxg2+ {[%clk 0:02:29]} 18. Kxg2 {[%clk 0:02:21]}  Rfe8 {[%clk 0:02:29]} 19. f4 {[%clk 0:02:17]}  Bxc3 {[%clk 0:02:23]} 20. Bxc3 {[%clk 0:02:17]}  a4 {[%clk 0:02:24]} 21. b4 {[%clk 0:02:15]}  f6 {[%clk 0:02:18]} 22. a3 {[%clk 0:02:13]}  Kf7 {[%clk 0:02:17]} 23. h4 {[%clk 0:02:12]}  Nf8 {[%clk 0:02:14]} 24. Kf3 {[%clk 0:02:10]}  Nd7 {[%clk 0:02:13]} 25. Bd4 {[%clk 0:02:04]}  c5 {[%clk 0:02:03]} 26. bxc5 {[%clk 0:01:56]}  Nxc5 {[%clk 0:02:03]} 27. Bxc5 {[%clk 0:01:55]}  dxc5 {[%clk 0:02:03]} 28. Rd7+ {[%clk 0:01:50]}  Re7 {[%clk 0:02:03]} 29. Rd5 {[%clk 0:01:45]}  Rb8 {[%clk 0:02:01]} 30. Rxc5 {[%clk 0:01:44]}  Rb3+ {[%clk 0:02:01]} 31. Re3 {[%clk 0:01:44]}  Rb1 {[%clk 0:01:53]} 32. Ra5 {[%clk 0:01:37]}  Rc1 {[%clk 0:01:53]} 33. Rxa4 {[%clk 0:01:28]}  h5 {[%clk 0:01:52]} 34. Ra5 {[%clk 0:01:27]}  Rxc4 {[%clk 0:01:51]} 35. Rxh5 {[%clk 0:01:26]}  Re6 {[%clk 0:01:47]} 36. Rf5 {[%clk 0:01:23]}  Rec6 {[%clk 0:01:44]} 37. e5 {[%clk 0:01:21]}  Rc3 {[%clk 0:01:44]} 38. e6+ {[%clk 0:01:16]}  Ke7 {[%clk 0:01:43]} 39. Rxc3 {[%clk 0:00:55]}  Rxc3+ {[%clk 0:01:41]} 40. Kg4 {[%clk 0:00:55]}  Rxa3 {[%clk 0:01:41]} 41. Rc5 {[%clk 0:00:55]}  Kd6 {[%clk 0:01:28]} 42. Rc1 {[%clk 0:00:48]}  Kxe6 {[%clk 0:01:16]} 43. Rxc7 {[%clk 0:00:47]}  f5+ {[%clk 0:01:16]} 44. Kh3 {[%clk 0:00:45]}  g6 {[%clk 0:01:15]} 45. Rh7 {[%clk 0:00:41]}  Kf6 {[%clk 0:01:15]} 46. h5 {[%clk 0:00:40]}  gxh5 {[%clk 0:01:14]} 47. Rxh5 {[%clk 0:00:41]}  Kg6 {[%clk 0:01:13]} 48. Rg5+ {[%clk 0:00:39]}  Kf6 {[%clk 0:01:13]} 49. Rh5 {[%clk 0:00:40]}  Kg6 {[%clk 0:01:13]} 50. Rg5+ {[%clk 0:00:40]}  Kf6 {[%clk 0:01:13]} 51. Rg8 {[%clk 0:00:41]}  Ra1 {[%clk 0:01:08]} 52. Rb8 {[%clk 0:00:40]}  Rh1+ {[%clk 0:01:06]} 53. Kg2 {[%clk 0:00:40]}  Ra1 {[%clk 0:01:06]} 54. Rb6+ {[%clk 0:00:41]}  Kg7 {[%clk 0:01:05]} 55. Kh3 {[%clk 0:00:40]}  Rh1+ {[%clk 0:01:04]} 56. Kg2 {[%clk 0:00:40]}  Ra1 {[%clk 0:01:03]} 57. Rb2 {[%clk 0:00:40]}  Kg6 {[%clk 0:01:02]} 58. Kh3 {[%clk 0:00:40]}  Rh1+ {[%clk 0:01:01]} 59. Rh2 {[%clk 0:00:40]}  Rg1 {[%clk 0:00:59]} 60. Kh4 {[%clk 0:00:39]}  Kh6 {[%clk 0:00:56]} 61. Kh3 {[%clk 0:00:38]}  Kh5 {[%clk 0:00:54]} 62. Rb2 {[%clk 0:00:35]}  Rh1+ {[%clk 0:00:54]} 63. Kg2 {[%clk 0:00:35]}  Ra1 {[%clk 0:00:51]} 64. Rb8 {[%clk 0:00:35]}  Ra2+ {[%clk 0:00:50]} 65. Kh3 {[%clk 0:00:34]}  Ra1 {[%clk 0:00:48]} 66. Rg8 {[%clk 0:00:34]}  Kh6 {[%clk 0:00:42]} 67. Rg5 {[%clk 0:00:33]}  Ra5 {[%clk 0:00:40]} 68. Kh4 {[%clk 0:00:33]}  Ra1 {[%clk 0:00:37]} 69. Rxf5 {[%clk 0:00:31]}  Rh1+ {[%clk 0:00:35]} 70. Kg4 {[%clk 0:00:32]}  Kg6 {[%clk 0:00:35]} 71. Ra5 {[%clk 0:00:31]}  Rb1 {[%clk 0:00:33]} 72. Ra6+ {[%clk 0:00:31]}  Kg7 {[%clk 0:00:32]} 73. Kg5 {[%clk 0:00:32]}  Rb7 {[%clk 0:00:31]} 74. f5 {[%clk 0:00:31]}  Rc7 {[%clk 0:00:29]} 75. g4 {[%clk 0:00:31]}  Rb7 {[%clk 0:00:29]} 76. Kh5 {[%clk 0:00:30]}  Ra7 {[%clk 0:00:25]} 77. Rxa7+ {[%clk 0:00:30]} 1-0

[Event "November 21 Late 2023"]
[Site "https://www.chess.com"]
[Date "2023.11.21"]
[Round "4"]
[White "Ward, Ieuan C"]
[Black "Lutz, Igor Oscar"]
[Result "1-0"]
[Board "136"]
[TimeControl "180+1"]
[WhiteFideId "406627"]
[BlackFideId "2110806"]
[WhiteElo "2369"]
[BlackElo "1749"]
[WhiteTeam "ENG"]
[BlackTeam "BRA"]
[WhiteClock "0:01:07"]
[BlackClock "0:00:33"]

1. d4 {[%clk 0:03:00]}  d5 {[%clk 0:02:58]} 2. c4 {[%clk 0:03:00]}  c6 {[%clk 0:02:59]} 3. Nf3 {[%clk 0:03:00]}  e6 {[%clk 0:02:59]} 4. Nc3 {[%clk 0:03:00]}  Nf6 {[%clk 0:02:59]} 5. e3 {[%clk 0:03:00]}  Bd6 {[%clk 0:02:59]} 6. Bd3 {[%clk 0:03:00]}  O-O {[%clk 0:02:59]} 7. O-O {[%clk 0:03:00]}  Nbd7 {[%clk 0:02:59]} 8. Qc2 {[%clk 0:03:00]}  e5 {[%clk 0:02:51]} 9. cxd5 {[%clk 0:02:54]}  cxd5 {[%clk 0:02:50]} 10. dxe5 {[%clk 0:02:52]}  Nxe5 {[%clk 0:02:50]} 11. Be2 {[%clk 0:02:37]}  h6 {[%clk 0:02:37]} 12. Rd1 {[%clk 0:02:36]}  Be6 {[%clk 0:02:36]} 13. Nb5 {[%clk 0:02:26]}  Bb8 {[%clk 0:02:29]} 14. b3 {[%clk 0:02:18]}  a6 {[%clk 0:02:29]} 15. Nbd4 {[%clk 0:02:18]}  Bd6 {[%clk 0:02:22]} 16. Bb2 {[%clk 0:02:14]}  Rc8 {[%clk 0:02:19]} 17. Qb1 {[%clk 0:02:09]}  Nxf3+ {[%clk 0:02:14]} 18. Bxf3 {[%clk 0:02:07]}  Bg4 {[%clk 0:02:03]} 19. h3 {[%clk 0:01:56]}  Bxf3 {[%clk 0:02:02]} 20. Nxf3 {[%clk 0:01:57]}  Qa5 {[%clk 0:01:45]} 21. Bxf6 {[%clk 0:01:55]}  gxf6 {[%clk 0:01:45]} 22. Qf5 {[%clk 0:01:54]}  Qb6 {[%clk 0:01:14]} 23. Rxd5 {[%clk 0:01:45]}  Bc5 {[%clk 0:01:06]} 24. Rad1 {[%clk 0:01:31]}  Rfe8 {[%clk 0:00:59]} 25. Qg4+ {[%clk 0:01:21]}  Kh7 {[%clk 0:00:58]} 26. Rd7 {[%clk 0:01:20]}  Rc7 {[%clk 0:00:51]} 27. Rxc7 {[%clk 0:01:11]}  Qxc7 {[%clk 0:00:33]} 28. Rd7 {[%clk 0:01:07]} 1-0

[Event "November 21 Late 2023"]
[Site "https://www.chess.com"]
[Date "2023.11.21"]
[Round "4"]
[White "Santos Flores, Alberto"]
[Black "SergioMoralesG"]
[Result "1-0"]
[Board "138"]
[TimeControl "180+1"]
[WhiteFideId "3601234"]
[WhiteElo "2235"]
[BlackElo "2360"]
[WhiteTeam "ECU"]
[WhiteClock "0:01:02"]
[BlackClock "0:00:00"]

1. e4 {[%clk 0:03:00]}  c5 {[%clk 0:02:45]} 2. Nf3 {[%clk 0:03:00]}  e6 {[%clk 0:02:45]} 3. g3 {[%clk 0:02:59]}  d5 {[%clk 0:02:44]} 4. exd5 {[%clk 0:02:59]}  exd5 {[%clk 0:02:45]} 5. d4 {[%clk 0:02:59]}  Nc6 {[%clk 0:02:45]} 6. Bg2 {[%clk 0:02:59]}  Bg4 {[%clk 0:02:46]} 7. c3 {[%clk 0:02:55]}  Nf6 {[%clk 0:02:44]} 8. O-O {[%clk 0:02:55]}  Be7 {[%clk 0:02:44]} 9. dxc5 {[%clk 0:02:54]}  Bxc5 {[%clk 0:02:40]} 10. Re1+ {[%clk 0:02:54]}  Be7 {[%clk 0:02:39]} 11. Nbd2 {[%clk 0:02:51]}  O-O {[%clk 0:02:38]} 12. Nb3 {[%clk 0:02:51]}  Re8 {[%clk 0:02:36]} 13. h3 {[%clk 0:02:50]}  Bxf3 {[%clk 0:02:33]} 14. Bxf3 {[%clk 0:02:48]}  h6 {[%clk 0:02:14]} 15. Nd4 {[%clk 0:02:39]}  Qd7 {[%clk 0:02:11]} 16. Bg2 {[%clk 0:02:38]}  Bc5 {[%clk 0:02:10]} 17. Be3 {[%clk 0:02:36]}  Ne4 {[%clk 0:02:05]} 18. Nxc6 {[%clk 0:02:21]}  Qxc6 {[%clk 0:02:05]} 19. Bxc5 {[%clk 0:02:20]}  Qxc5 {[%clk 0:02:01]} 20. Qf3 {[%clk 0:02:01]}  Re6 {[%clk 0:01:56]} 21. Rad1 {[%clk 0:02:01]}  Rf6 {[%clk 0:01:54]} 22. Qe3 {[%clk 0:02:01]}  Qxe3 {[%clk 0:01:47]} 23. Rxe3 {[%clk 0:02:00]}  Nxf2 {[%clk 0:01:45]} 24. Rxd5 {[%clk 0:01:59]}  b5 {[%clk 0:00:24]} 25. Re2 {[%clk 0:01:57]}  Nxh3+ {[%clk 0:00:22]} 26. Bxh3 {[%clk 0:01:57]}  Rb8 {[%clk 0:00:22]} 27. a3 {[%clk 0:01:55]}  a5 {[%clk 0:00:22]} 28. Ree5 {[%clk 0:01:52]}  b4 {[%clk 0:00:21]} 29. Rb5 {[%clk 0:01:41]}  Rxb5 {[%clk 0:00:20]} 30. Rxb5 {[%clk 0:01:40]}  bxc3 {[%clk 0:00:20]} 31. bxc3 {[%clk 0:01:41]}  Rf3 {[%clk 0:00:21]} 32. Kg2 {[%clk 0:01:35]}  Rxc3 {[%clk 0:00:20]} 33. Rxa5 {[%clk 0:01:35]}  g6 {[%clk 0:00:21]} 34. a4 {[%clk 0:01:35]}  Ra3 {[%clk 0:00:20]} 35. Bd7 {[%clk 0:01:33]}  Kf8 {[%clk 0:00:19]} 36. Re5 {[%clk 0:01:30]}  Kg7 {[%clk 0:00:18]} 37. Bc6 {[%clk 0:01:27]}  Kf6 {[%clk 0:00:18]} 38. Re2 {[%clk 0:01:27]}  h5 {[%clk 0:00:15]} 39. Rc2 {[%clk 0:01:23]}  Ke6 {[%clk 0:00:14]} 40. Bb5 {[%clk 0:01:18]}  Kd6 {[%clk 0:00:12]} 41. Rf2 {[%clk 0:01:14]}  f5 {[%clk 0:00:11]} 42. Rc2 {[%clk 0:01:13]}  g5 {[%clk 0:00:11]} 43. Rf2 {[%clk 0:01:13]}  h4 {[%clk 0:00:08]} 44. gxh4 {[%clk 0:01:12]}  gxh4 {[%clk 0:00:09]} 45. Rxf5 {[%clk 0:01:12]}  h3+ {[%clk 0:00:10]} 46. Kh2 {[%clk 0:01:11]}  Kc7 {[%clk 0:00:10]} 47. Rh5 {[%clk 0:01:11]}  Kb6 {[%clk 0:00:10]} 48. Rxh3 {[%clk 0:01:12]}  Ra2+ {[%clk 0:00:09]} 49. Kg3 {[%clk 0:01:11]}  Ra3+ {[%clk 0:00:09]} 50. Kg4 {[%clk 0:01:12]}  Ra1 {[%clk 0:00:09]} 51. Rh6+ {[%clk 0:01:12]}  Kb7 {[%clk 0:00:09]} 52. Kf4 {[%clk 0:01:10]}  Ra2 {[%clk 0:00:07]} 53. Ke4 {[%clk 0:01:10]}  Ra1 {[%clk 0:00:08]} 54. Kd4 {[%clk 0:01:10]}  Rd1+ {[%clk 0:00:07]} 55. Kc5 {[%clk 0:01:08]}  Rc1+ {[%clk 0:00:08]} 56. Bc4 {[%clk 0:01:08]}  Ra1 {[%clk 0:00:08]} 57. Rh7+ {[%clk 0:01:08]}  Kb8 {[%clk 0:00:08]} 58. Bb5 {[%clk 0:01:06]}  Kc8 {[%clk 0:00:05]} 59. Kb6 {[%clk 0:01:05]}  Kd8 {[%clk 0:00:00]} 60. a5 {[%clk 0:01:02]} 1-0

[Event "November 21 Late 2023"]
[Site "https://www.chess.com"]
[Date "2023.11.21"]
[Round "4"]
[White "hristos03"]
[Black "Castillo Pena, Patricia Evarista"]
[Result "1-0"]
[Board "142"]
[TimeControl "180+1"]
[BlackFideId "6412106"]
[WhiteElo "2381"]
[BlackElo "1861"]
[BlackTeam "DOM"]
[WhiteClock "0:01:03"]
[BlackClock "0:00:28"]

1. e4 {[%clk 0:02:59]}  c5 {[%clk 0:02:59]} 2. Nf3 {[%clk 0:02:59]}  d6 {[%clk 0:02:58]} 3. d4 {[%clk 0:03:00]}  cxd4 {[%clk 0:02:59]} 4. Nxd4 {[%clk 0:03:01]}  Nf6 {[%clk 0:02:59]} 5. Nc3 {[%clk 0:03:01]}  a6 {[%clk 0:02:59]} 6. h3 {[%clk 0:03:02]}  e6 {[%clk 0:02:58]} 7. g4 {[%clk 0:03:02]}  d5 {[%clk 0:02:56]} 8. Nde2 {[%clk 0:02:52]}  Bb4 {[%clk 0:02:52]} 9. a3 {[%clk 0:02:45]}  Ba5 {[%clk 0:02:38]} 10. b4 {[%clk 0:02:34]}  Bb6 {[%clk 0:02:35]} 11. Bg2 {[%clk 0:02:28]}  dxe4 {[%clk 0:02:24]} 12. Qxd8+ {[%clk 0:02:24]}  Bxd8 {[%clk 0:02:23]} 13. Nxe4 {[%clk 0:02:24]}  Nxe4 {[%clk 0:02:19]} 14. Bxe4 {[%clk 0:02:25]}  Nd7 {[%clk 0:02:13]} 15. Bb2 {[%clk 0:02:16]}  Nf6 {[%clk 0:02:12]} 16. Bg2 {[%clk 0:02:10]}  O-O {[%clk 0:02:08]} 17. O-O {[%clk 0:02:06]}  Nd5 {[%clk 0:02:01]} 18. c4 {[%clk 0:02:01]}  Nb6 {[%clk 0:01:55]} 19. Rac1 {[%clk 0:01:55]}  Na4 {[%clk 0:01:43]} 20. Ba1 {[%clk 0:01:55]}  Ra7 {[%clk 0:01:33]} 21. c5 {[%clk 0:01:47]}  Bd7 {[%clk 0:01:31]} 22. Rfd1 {[%clk 0:01:44]}  Bb5 {[%clk 0:01:26]} 23. Nd4 {[%clk 0:01:39]}  Bc7 {[%clk 0:01:15]} 24. Nxb5 {[%clk 0:01:31]}  axb5 {[%clk 0:01:16]} 25. Rd7 {[%clk 0:01:31]}  Bf4 {[%clk 0:01:07]} 26. Rcd1 {[%clk 0:01:32]}  e5 {[%clk 0:00:47]} 27. Rxb7 {[%clk 0:01:24]}  Rxb7 {[%clk 0:00:47]} 28. Bxb7 {[%clk 0:01:25]}  Rb8 {[%clk 0:00:43]} 29. Rd7 {[%clk 0:01:17]}  Kf8 {[%clk 0:00:41]} 30. Bd5 {[%clk 0:01:13]}  f6 {[%clk 0:00:39]} 31. Rf7+ {[%clk 0:01:10]}  Ke8 {[%clk 0:00:38]} 32. Rxg7 {[%clk 0:01:10]}  Rd8 {[%clk 0:00:37]} 33. Rg8+ {[%clk 0:01:06]}  Ke7 {[%clk 0:00:37]} 34. Rxd8 {[%clk 0:01:07]}  Kxd8 {[%clk 0:00:28]} 35. Bc6 {[%clk 0:01:03]} 1-0

[Event "November 21 Late 2023"]
[Site "https://www.chess.com"]
[Date "2023.11.21"]
[Round "4"]
[White "RodokininEV"]
[Black "Lopez, Nelson M, Ii"]
[Result "1-0"]
[Board "144"]
[TimeControl "180+1"]
[BlackFideId "2027895"]
[WhiteElo "2503"]
[BlackElo "2271"]
[BlackTeam "USA"]
[WhiteClock "0:01:25"]
[BlackClock "0:00:21"]

1. d4 {[%clk 0:03:00]}  b5 {[%clk 0:02:54]} 2. e4 {[%clk 0:03:00]}  Bb7 {[%clk 0:02:54]} 3. Bd3 {[%clk 0:03:00]}  c5 {[%clk 0:02:52]} 4. dxc5 {[%clk 0:03:00]}  Na6 {[%clk 0:02:49]} 5. Bxb5 {[%clk 0:02:56]}  Bxe4 {[%clk 0:02:42]} 6. Nf3 {[%clk 0:02:46]}  Qa5+ {[%clk 0:02:24]} 7. Nc3 {[%clk 0:02:46]}  Nxc5 {[%clk 0:01:55]} 8. O-O {[%clk 0:02:43]}  Bb7 {[%clk 0:01:45]} 9. a3 {[%clk 0:02:37]}  Qc7 {[%clk 0:01:23]} 10. b4 {[%clk 0:02:34]}  Ne6 {[%clk 0:01:23]} 11. Nd5 {[%clk 0:02:34]}  Bxd5 {[%clk 0:01:21]} 12. Qxd5 {[%clk 0:02:34]}  Rd8 {[%clk 0:01:18]} 13. Rd1 {[%clk 0:02:24]}  Nf6 {[%clk 0:01:17]} 14. Qd3 {[%clk 0:02:17]}  g6 {[%clk 0:01:16]} 15. c4 {[%clk 0:02:16]}  Bg7 {[%clk 0:01:16]} 16. Bb2 {[%clk 0:02:16]}  O-O {[%clk 0:01:16]} 17. c5 {[%clk 0:02:13]}  Nf4 {[%clk 0:01:09]} 18. Qb3 {[%clk 0:02:04]}  Ne4 {[%clk 0:00:53]} 19. Bxg7 {[%clk 0:02:02]}  Kxg7 {[%clk 0:00:53]} 20. Qb2+ {[%clk 0:02:01]}  f6 {[%clk 0:00:49]} 21. Rac1 {[%clk 0:01:59]}  h5 {[%clk 0:00:39]} 22. Bf1 {[%clk 0:01:58]}  h4 {[%clk 0:00:39]} 23. h3 {[%clk 0:01:57]}  g5 {[%clk 0:00:38]} 24. Qd4 {[%clk 0:01:54]}  Qb7 {[%clk 0:00:34]} 25. c6 {[%clk 0:01:40]}  dxc6 {[%clk 0:00:32]} 26. Qxe4 {[%clk 0:01:40]}  Rxd1 {[%clk 0:00:30]} 27. Rxd1 {[%clk 0:01:41]}  e5 {[%clk 0:00:28]} 28. Qf5 {[%clk 0:01:36]}  Rf7 {[%clk 0:00:28]} 29. Bc4 {[%clk 0:01:30]}  Re7 {[%clk 0:00:28]} 30. Nxg5 {[%clk 0:01:29]}  fxg5 {[%clk 0:00:25]} 31. Qxg5+ {[%clk 0:01:30]}  Kf8 {[%clk 0:00:25]} 32. Rd8+ {[%clk 0:01:27]}  Re8 {[%clk 0:00:21]} 33. Qf6+ {[%clk 0:01:25]} 1-0

[Event "November 21 Late 2023"]
[Site "https://www.chess.com"]
[Date "2023.11.21"]
[Round "4"]
[White "Golubenko, Valentina"]
[Black "Khater, Sherif"]
[Result "0-1"]
[Board "145"]
[TimeControl "180+1"]
[WhiteFideId "4501993"]
[BlackFideId "2034280"]
[WhiteElo "2126"]
[BlackElo "2503"]
[WhiteTeam "CRO"]
[BlackTeam "USA"]
[WhiteClock "0:00:01"]
[BlackClock "0:00:34"]

1. d4 {[%clk 0:02:58]}  c6 {[%clk 0:02:59]} 2. g3 {[%clk 0:02:57]}  d5 {[%clk 0:03:00]} 3. Bg2 {[%clk 0:02:57]}  Nf6 {[%clk 0:03:00]} 4. Nf3 {[%clk 0:02:58]}  Bf5 {[%clk 0:02:58]} 5. O-O {[%clk 0:02:58]}  Bg6 {[%clk 0:02:57]} 6. c4 {[%clk 0:02:57]}  e6 {[%clk 0:02:57]} 7. Nc3 {[%clk 0:02:57]}  dxc4 {[%clk 0:02:57]} 8. Ne5 {[%clk 0:02:56]}  Nbd7 {[%clk 0:02:54]} 9. Nxc4 {[%clk 0:02:55]}  Be7 {[%clk 0:02:54]} 10. Bf4 {[%clk 0:02:55]}  O-O {[%clk 0:02:54]} 11. Re1 {[%clk 0:02:49]}  Nd5 {[%clk 0:02:51]} 12. Bd2 {[%clk 0:02:44]}  N7b6 {[%clk 0:02:47]} 13. Ne5 {[%clk 0:02:39]}  Nd7 {[%clk 0:02:46]} 14. Nxg6 {[%clk 0:02:32]}  hxg6 {[%clk 0:02:46]} 15. e4 {[%clk 0:02:32]}  Nxc3 {[%clk 0:02:46]} 16. bxc3 {[%clk 0:02:31]}  c5 {[%clk 0:02:45]} 17. e5 {[%clk 0:02:27]}  cxd4 {[%clk 0:02:42]} 18. cxd4 {[%clk 0:02:27]}  Rb8 {[%clk 0:02:39]} 19. Rb1 {[%clk 0:02:24]}  Nb6 {[%clk 0:02:38]} 20. Ba5 {[%clk 0:02:24]}  Qd7 {[%clk 0:02:30]} 21. Bxb6 {[%clk 0:02:18]}  axb6 {[%clk 0:02:30]} 22. Rxb6 {[%clk 0:02:18]}  Rfd8 {[%clk 0:02:31]} 23. Qb3 {[%clk 0:01:37]}  Qxd4 {[%clk 0:02:24]} 24. Rxb7 {[%clk 0:01:32]}  Rxb7 {[%clk 0:02:21]} 25. Qxb7 {[%clk 0:01:30]}  Bc5 {[%clk 0:02:17]} 26. Rf1 {[%clk 0:01:11]}  Qxe5 {[%clk 0:02:16]} 27. a4 {[%clk 0:00:57]}  Rd2 {[%clk 0:02:12]} 28. Qa8+ {[%clk 0:00:52]}  Kh7 {[%clk 0:02:11]} 29. Qf3 {[%clk 0:00:52]}  f5 {[%clk 0:01:59]} 30. h4 {[%clk 0:00:47]}  Ra2 {[%clk 0:01:53]} 31. h5 {[%clk 0:00:31]}  g5 {[%clk 0:01:52]} 32. a5 {[%clk 0:00:26]}  Rxa5 {[%clk 0:01:48]} 33. Qc6 {[%clk 0:00:16]}  Ra2 {[%clk 0:01:40]} 34. Qe8 {[%clk 0:00:15]}  Qf6 {[%clk 0:01:29]} 35. Qc8 {[%clk 0:00:06]}  Rc2 {[%clk 0:01:22]} 36. Qe8 {[%clk 0:00:05]}  g4 {[%clk 0:01:17]} 37. Qd7 {[%clk 0:00:02]}  Qe5 {[%clk 0:01:12]} 38. Qe8 {[%clk 0:00:02]}  Qf6 {[%clk 0:01:13]} 39. Qd7 {[%clk 0:00:01]}  Re2 {[%clk 0:01:09]} 40. Qe8 {[%clk 0:00:01]}  Qg5 {[%clk 0:01:07]} 41. Qd7 {[%clk 0:00:02]}  Qxh5 {[%clk 0:01:05]} 42. Qd3 {[%clk 0:00:02]}  Ra2 {[%clk 0:00:44]} 43. Qc4 {[%clk 0:00:02]}  Bxf2+ {[%clk 0:00:41]} 44. Rxf2 {[%clk 0:00:02]}  Rxf2 {[%clk 0:00:42]} 45. Kxf2 {[%clk 0:00:02]}  Qg6 {[%clk 0:00:42]} 46. Qd3 {[%clk 0:00:02]}  Qf6 {[%clk 0:00:42]} 47. Qe3 {[%clk 0:00:03]}  g5 {[%clk 0:00:41]} 48. Qd3 {[%clk 0:00:02]}  Kg6 {[%clk 0:00:41]} 49. Qe3 {[%clk 0:00:02]}  Qb2+ {[%clk 0:00:40]} 50. Qe2 {[%clk 0:00:02]}  Qd4+ {[%clk 0:00:40]} 51. Qe3 {[%clk 0:00:02]}  Qd6 {[%clk 0:00:40]} 52. Qe2 {[%clk 0:00:02]}  Kf6 {[%clk 0:00:39]} 53. Qc2 {[%clk 0:00:02]}  Qd4+ {[%clk 0:00:38]} 54. Kf1 {[%clk 0:00:03]}  Qe3 {[%clk 0:00:37]} 55. Qe2 {[%clk 0:00:03]}  Qxg3 {[%clk 0:00:37]} 56. Qb2+ {[%clk 0:00:03]}  Qe5 {[%clk 0:00:37]} 57. Qf2 {[%clk 0:00:03]}  f4 {[%clk 0:00:37]} 58. Qd2 {[%clk 0:00:02]}  g3 {[%clk 0:00:36]} 59. Bf3 {[%clk 0:00:02]}  Qa1+ {[%clk 0:00:35]} 60. Kg2 {[%clk 0:00:02]}  Qe5 {[%clk 0:00:36]} 61. Qd3 {[%clk 0:00:02]}  Qb2+ {[%clk 0:00:35]} 62. Kh3 {[%clk 0:00:01]}  Qh2+ {[%clk 0:00:34]} 63. Kg4 {[%clk 0:00:01]}  Qh4# {[%clk 0:00:34]} 0-1

[Event "November 21 Late 2023"]
[Site "https://www.chess.com"]
[Date "2023.11.21"]
[Round "4"]
[White "Urbina Perez, Juan Antonio"]
[Black "Tsiolakidis, Anastasios"]
[Result "1-0"]
[Board "147"]
[TimeControl "180+1"]
[WhiteFideId "2217368"]
[BlackFideId "4201477"]
[WhiteElo "2185"]
[BlackElo "2260"]
[WhiteTeam "ESP"]
[BlackTeam "GRE"]
[WhiteClock "0:01:04"]
[BlackClock "0:00:00"]

1. d4 {[%clk 0:02:55]}  c5 {[%clk 0:02:59]} 2. d5 {[%clk 0:02:55]}  b5 {[%clk 0:02:59]} 3. e4 {[%clk 0:02:50]}  a6 {[%clk 0:02:58]} 4. a4 {[%clk 0:02:48]}  b4 {[%clk 0:02:57]} 5. a5 {[%clk 0:02:48]}  e5 {[%clk 0:02:57]} 6. Nd2 {[%clk 0:02:45]}  d6 {[%clk 0:02:57]} 7. Nc4 {[%clk 0:02:45]}  Nf6 {[%clk 0:02:57]} 8. Bd3 {[%clk 0:02:44]}  g6 {[%clk 0:02:55]} 9. Ne2 {[%clk 0:02:43]}  Bg7 {[%clk 0:02:56]} 10. O-O {[%clk 0:02:44]}  O-O {[%clk 0:02:56]} 11. h3 {[%clk 0:02:43]}  Qe7 {[%clk 0:02:49]} 12. f4 {[%clk 0:02:32]}  exf4 {[%clk 0:02:45]} 13. Bxf4 {[%clk 0:02:33]}  Nxe4 {[%clk 0:02:45]} 14. Bxe4 {[%clk 0:02:14]}  Qxe4 {[%clk 0:02:46]} 15. Nxd6 {[%clk 0:02:14]}  Qe7 {[%clk 0:02:06]} 16. Nc4 {[%clk 0:02:13]}  Rd8 {[%clk 0:02:02]} 17. Qd2 {[%clk 0:01:57]}  Nd7 {[%clk 0:01:55]} 18. Rae1 {[%clk 0:01:45]}  Nf6 {[%clk 0:01:54]} 19. Nd4 {[%clk 0:01:33]}  Qb7 {[%clk 0:00:11]} 20. Nc6 {[%clk 0:01:28]}  Nxd5 {[%clk 0:00:05]} 21. Nxd8 {[%clk 0:01:23]}  Qd7 {[%clk 0:00:00]} 22. Qxd5 {[%clk 0:01:04]} 1-0

[Event "November 21 Late 2023"]
[Site "https://www.chess.com"]
[Date "2023.11.21"]
[Round "4"]
[White "mataMNsMS"]
[Black "Melikhov, Evgeny V."]
[Result "0-1"]
[Board "148"]
[TimeControl "180+1"]
[BlackFideId "4122046"]
[WhiteElo "2238"]
[BlackElo "2165"]
[BlackTeam "GRE"]
[WhiteClock "0:00:53"]
[BlackClock "0:00:16"]

1. e4 {[%clk 0:03:00]}  c5 {[%clk 0:02:59]} 2. Nf3 {[%clk 0:03:00]}  d6 {[%clk 0:02:58]} 3. d4 {[%clk 0:03:01]}  cxd4 {[%clk 0:02:58]} 4. Nxd4 {[%clk 0:03:02]}  Nf6 {[%clk 0:02:58]} 5. Nc3 {[%clk 0:03:02]}  a6 {[%clk 0:02:58]} 6. f3 {[%clk 0:03:02]}  e5 {[%clk 0:02:56]} 7. Nb3 {[%clk 0:03:02]}  Be6 {[%clk 0:02:56]} 8. Be3 {[%clk 0:03:02]}  Be7 {[%clk 0:02:55]} 9. Qd2 {[%clk 0:03:02]}  O-O {[%clk 0:02:55]} 10. g4 {[%clk 0:03:02]}  b5 {[%clk 0:02:47]} 11. O-O-O {[%clk 0:03:02]}  Nbd7 {[%clk 0:02:46]} 12. Kb1 {[%clk 0:03:02]}  Nb6 {[%clk 0:02:43]} 13. h4 {[%clk 0:03:02]}  Nc4 {[%clk 0:02:39]} 14. Qf2 {[%clk 0:03:02]}  Nxe3 {[%clk 0:02:38]} 15. Qxe3 {[%clk 0:03:03]}  b4 {[%clk 0:02:19]} 16. Nd5 {[%clk 0:03:01]}  Bxd5 {[%clk 0:02:17]} 17. exd5 {[%clk 0:03:02]}  a5 {[%clk 0:02:14]} 18. h5 {[%clk 0:03:00]}  a4 {[%clk 0:02:12]} 19. Nc1 {[%clk 0:03:00]}  b3 {[%clk 0:02:12]} 20. cxb3 {[%clk 0:02:59]}  axb3 {[%clk 0:02:11]} 21. Qxb3 {[%clk 0:02:53]}  Qa5 {[%clk 0:02:08]} 22. g5 {[%clk 0:02:46]}  Rfb8 {[%clk 0:01:57]} 23. Qxb8+ {[%clk 0:02:45]}  Rxb8 {[%clk 0:01:55]} 24. gxf6 {[%clk 0:02:46]}  Bxf6 {[%clk 0:01:49]} 25. Bc4 {[%clk 0:02:39]}  e4 {[%clk 0:01:44]} 26. Bb3 {[%clk 0:02:37]}  exf3 {[%clk 0:01:31]} 27. Rhf1 {[%clk 0:02:35]}  Qb4 {[%clk 0:01:20]} 28. Rxf3 {[%clk 0:02:22]}  Qg4 {[%clk 0:01:19]} 29. Rdf1 {[%clk 0:02:02]}  Qxh5 {[%clk 0:01:15]} 30. a4 {[%clk 0:01:54]}  Qe5 {[%clk 0:01:09]} 31. R1f2 {[%clk 0:01:26]}  h5 {[%clk 0:01:05]} 32. Ka2 {[%clk 0:01:25]}  h4 {[%clk 0:01:02]} 33. Nd3 {[%clk 0:01:25]}  Qd4 {[%clk 0:00:58]} 34. Nf4 {[%clk 0:01:21]}  Rb4 {[%clk 0:00:40]} 35. Nh5 {[%clk 0:01:12]}  Be5 {[%clk 0:00:34]} 36. Rxf7 {[%clk 0:01:03]}  Rxa4+ {[%clk 0:00:20]} 37. Bxa4 {[%clk 0:01:03]}  Qxa4+ {[%clk 0:00:20]} 38. Kb1 {[%clk 0:01:01]}  Qd1+ {[%clk 0:00:20]} 39. Ka2 {[%clk 0:01:02]}  Qxd5+ {[%clk 0:00:17]} 40. Kb1 {[%clk 0:00:58]}  Qxf7 {[%clk 0:00:17]} 41. Rxf7 {[%clk 0:00:59]}  Kxf7 {[%clk 0:00:17]} 42. b4 {[%clk 0:00:53]}  h3 {[%clk 0:00:16]} 0-1